Cogmind - Beta 16.1 @@@ ROGUE MODE // 2026.02.12 @ 16:16:20 Player: BlobtheGreat Result: Destroyed by P-80 Master with Gamma Rifle Performance ------------- Evolutions (7) 3500 Regions Visited (26) 5200 Robots Destroyed (121) 605 Value Destroyed (3803) 3803 Prototype IDs (61) 1220 Alien Tech Used (2) 400 Bonus (7143) 7143 TOTAL SCORE: 21871 Bonus ------- High Alert Combat Kills 12 Follower Combat Kills 4953 Awakened Behemoth Slayer 1000 Registered with UFD 300 Met Optimus in HQ 500 Met Zhirov 300 Met Warlord at Base 500 MAIN.C Attacked Warlord 500 Warlord Defense Kills 468 Scanned by Researcher 500 Friendly Fire -1890 Cogmind --------- Core Integrity 0/1300 Matter 65/300 Energy 39/100 System Corruption 55% Temperature Cool (46) Movement Core (350) Ox6 Location -3/Testing Parts ------- > --- POWER (2) -------- (None) > --- PROPULSION (7) --- (None) > --- UTILITY (9) ------ Large Storage Unit Advanced Transmission Jammer > --- WEAPON (3) ------- (None) > --- INVENTORY (15) --- Cooled Antigrav System Experimental Heat Sink Advanced Weapon Cycler Advanced Force Field Amulet of Y3-NDR Improved Arc Thrower High-powered Disruptor Cannon Long-range Missile Launcher System Spiker (4) CPS Tube (2) CR-A16's Behemoth Slayer GAL Module Portable AFG (100) Peak State ------------ > --- POWER ------------ Improved Quantum Reactor Meta Core > --- PROPULSION ------- Cooled Aerolev Unit Cooled Antigrav System Cooled Antigrav System Combat Antigrav System Antigrav Array Combat Linear Gravjet > --- UTILITY ---------- Large Storage Unit Advanced Sensor Array Advanced Signal Interpreter Core Analyzer Advanced Transmission Jammer Enhanced Scrap Shield Advanced Hacking Suite Advanced System Shield Amulet of Y3-NDR > --- WEAPON ----------- Improved Arc Projector Improved Arc Thrower Hypervelocity Multirail > --- INVENTORY -------- Vortex Chain Reactor Experimental Heat Sink Advanced Weapon Cycler Advanced Force Field Transdimensional Reconstructor High-powered Disruptor Cannon Heavy Phase Cannon Long-range Missile Launcher System Spiker CPS Tube CR-A16's Behemoth Slayer GAL Module [Rating: 172] Favorites ----------- Power Meta Core Engine Subdweller Power Source Power Core Meta Core Reactor Light Antimatter Reactor Propulsion Combat Airjet Treads Light Treads Hover Unit Combat Airjet Utility Large Storage Unit Device V3-11A's Pendant Storage Large Storage Unit Processor Improved Signal Interpreter Hackware Advanced Hacking Suite Protection Enhanced Scrap Shield Weapon Bore Cannon Energy Gun Heavy Riot Gun Energy Cannon Subdweller Beam Cannon Ballistic Gun Assault Rifle Ballistic Cannon Bore Cannon Launcher Long-range Missile Launcher Special Weapon Remote Datajack Slashing Weapon Chainsword Piercing Weapon CR-A16's Pointy Stick Build | -11 -10 -10 -10 -9 -9 -6 -6 -6 -6 -6 -6 -5 -5 -5 -5 -5 -5 -5 -4 -4 -4 -4 -4 -3 -3 -3 ------- Run | Yrd Mat Min Sub Rec Scr Fac Was Fac Low Low Zio Pro Fac Was Fac Upp Upp Zhi Pro Fac Upp Upp War Pro Res Tes Slots Evolved 14 | . . . . . . 8 . . . . . . 2 . . . . . . 2 . . . . 2 . Power 1 | . . . . . . 1 . . . . . . . . . . . . . . . . . . . . Propulsion 5 | . . . . . . 3 . . . . . . 1 . . . . . . . . . . . 1 . Utility 7 | . . . . . . 4 . . . . . . 1 . . . . . . 2 . . . . . . Weapon 1 | . . . . . . . . . . . . . . . . . . . . . . . . . 1 . Parts Attached 125 | 7 5 2 10 . 5 20 7 6 2 2 4 5 5 3 2 2 8 4 1 4 . . 10 . 3 8 Power 14 | 1 2 1 1 . . 3 . . . . . 1 1 . . 1 . . . . . . 2 . . 1 Engine 6 | 1 2 1 1 . . 1 . . . . . . . . . . . . . . . . . . . . Core 3 | . . . . . . 2 . . . . . . 1 . . . . . . . . . . . . . Reactor 5 | . . . . . . . . . . . . 1 . . . 1 . . . . . . 2 . . 1 Propulsion 25 | 2 . . 2 . 2 5 1 1 . . . 2 3 2 . . 1 . . . . . 2 . . 2 Treads 4 | 2 . . 2 . . . . . . . . . . . . . . . . . . . . . . . Leg . | . . . . . . . . . . . . . . . . . . . . . . . . . . . Wheel . | . . . . . . . . . . . . . . . . . . . . . . . . . . . Hover 21 | . . . . . 2 5 1 1 . . . 2 3 2 . . 1 . . . . . 2 . . 2 Flight . | . . . . . . . . . . . . . . . . . . . . . . . . . . . Utility 47 | 2 2 . 3 . 1 7 5 3 1 1 1 . 1 1 1 . 4 4 . 2 . . 2 . 3 3 Device 21 | 1 . . 2 . . 2 2 1 . 1 1 . 1 1 . . 2 . . 1 . . 2 . 2 2 Storage 7 | 1 2 . 1 . . . . . . . . . . . . . 1 2 . . . . . . . . Processor 8 | . . . . . . 3 1 . . . . . . . 1 . 1 . . . . . . . 1 1 Hackware 3 | . . . . . . 1 . . . . . . . . . . . 1 . 1 . . . . . . Protection 8 | . . . . . 1 1 2 2 1 . . . . . . . . 1 . . . . . . . . Artifact . | . . . . . . . . . . . . . . . . . . . . . . . . . . . Weapon 39 | 2 1 1 4 . 2 5 1 2 1 1 3 2 . . 1 1 3 . 1 2 . . 4 . . 2 Energy Gun 12 | 1 . . . . . 1 . . . . 1 2 . . . 1 3 . . 2 . . 1 . . . Energy Cannon 4 | . . . 1 . . . . 1 . . . . . . 1 . . . . . . . 1 . . . Ballistic Gun 3 | 1 . . 1 . . . . . . . . . . . . . . . . . . . . . . 1 Ballistic Cannon 6 | . 1 1 1 . . 2 . . . . . . . . . . . . . . . . . . . 1 Launcher 4 | . . . 1 . . . 1 . 1 . . . . . . . . . . . . . 1 . . . Special Weapon 6 | . . . . . 1 1 . 1 . 1 1 . . . . . . . . . . . 1 . . . Impact Weapon . | . . . . . . . . . . . . . . . . . . . . . . . . . . . Slashing Weapon 2 | . . . . . 1 1 . . . . . . . . . . . . . . . . . . . . Piercing Weapon 2 | . . . . . . . . . . . 1 . . . . . . . 1 . . . . . . . Special Melee Weapon . | . . . . . . . . . . . . . . . . . . . . . . . . . . . Unidentified Prototypes 20 | . . . 1 . . 2 1 . 1 1 1 . 1 . . . 1 4 . . . . 5 . . 2 Parts Lost 37 | . 3 . 1 1 . 6 . . . 1 . . . . . . . . . . . . 1 . 2 22 Power 5 | . 2 . . 1 . . . . . . . . . . . . . . . . . . . . . 2 Propulsion 13 | . . . 1 . . 2 . . . 1 . . . . . . . . . . . . . . . 9 Utility 13 | . 1 . . . . 3 . . . . . . . . . . . . . . . . 1 . 2 6 Weapon 6 | . . . . . . 1 . . . . . . . . . . . . . . . . . . . 5 Highest Loss Streak 12 | . 1 . 1 1 . 6 . . . 1 . . . . . . . . . . . . 1 . 1 12 To Critical Strikes 1 | . . . . . . . . . . . . . . . . . . . . . . . . . . 1 Average Backups 16 | 3 7 13 21 19 21 12 14 14 13 13 13 14 13 14 14 14 14 14 13 12 13 13 12 11 11 11 Power 1 | . . 1 2 1 . . 1 1 1 . . . . . . . . . . . . . . 1 1 . Propulsion 3 | 1 4 5 5 4 3 . 2 1 . . 1 1 . 1 1 1 1 1 1 1 1 1 1 1 1 . Utility 4 | . 1 2 4 4 7 5 4 4 5 5 5 4 4 4 4 4 4 4 5 2 2 2 1 1 2 2 Weapon 5 | . 1 4 8 9 7 1 2 2 2 3 4 4 5 5 5 5 5 4 2 3 4 5 5 5 4 4 Tool/Special . | . . . . . . . . . . . . . . . . . . . . . . . . . . . Unused Backups 39 | . 2 . 4 . 9 2 . 2 1 1 . 2 . 1 . 1 1 2 2 . 1 . 1 . 2 5 Power 2 | . . . 1 . 1 . . . . . . . . . . . . . . . . . . . . . Propulsion 14 | . 2 . 2 . 4 . . . 1 . . 1 . . . . . . . . 1 . . . 2 1 Utility 16 | . . . 1 . . 2 . 2 . 1 . 1 . 1 . 1 1 1 2 . . . 1 . . 2 Weapon 6 | . . . . . 4 . . . . . . . . . . . . 1 . . . . . . . 1 Tool/Special 1 | . . . . . . . . . . . . . . . . . . . . . . . . . . 1 Average Slot Usage (%) 88 | . 92 100 97 94 70 52 80 85 83 82 88 93 93 93 94 94 93 88 89 90 95 95 94 95 94 84 Engine 5 | . 12 14 14 9 . 2 5 5 5 3 . . . . . . . . . . . . . . . . Core 2 | . . . . . . 2 5 5 5 6 11 10 10 10 10 5 5 5 5 4 5 5 5 5 4 2 Treads 15 | . 27 28 27 28 22 . . . . . . . . . . . . . . . . . . . . . Hover 13 | . . . . . 5 19 27 29 33 31 29 29 31 31 31 31 31 31 31 28 30 30 30 30 31 27 Device 9 | . 4 . 13 14 3 1 7 11 11 11 12 16 20 20 15 15 15 10 10 14 15 15 13 10 9 12 Storage 10 | . 14 14 14 14 14 5 5 5 5 5 5 5 5 5 5 5 5 5 5 4 5 5 5 5 4 4 Processor 3 | . . . . . . 6 8 5 5 5 5 5 5 5 9 10 10 10 10 9 10 10 10 10 9 7 Hackware 1 | . . . . . . 5 3 . . . . . . . . . . 3 5 8 10 10 10 10 9 8 Protection 4 | . 4 14 . . 2 2 4 11 5 5 9 5 5 5 5 5 5 5 5 4 5 5 6 10 7 3 Energy Gun 3 | . 9 . . . . . 3 . . . . 15 15 15 14 15 14 10 10 9 10 10 9 8 12 7 Ballistic Gun 1 | . 14 2 4 . . . . . . . . . . . . . . . . . . . . . . . Ballistic Cannon 11 | . 4 25 19 28 18 . . 1 . . . . . . . . . . . . . . . . . . Slashing Weapon 1 | . . . . . 3 2 5 5 5 5 1 . . . . . . . . . . . . . . . Peak Build Rating 172 | 7 8 17 22 21 25 71 82 83 91 93 94 102 114 119 116 116 120 124 123 136 130 132 147 147 163 172 Average Rating 54 | 5 6 13 18 20 18 46 74 79 88 88 92 98 113 116 113 113 115 114 115 128 130 130 136 144 156 158 On Entrance 86 | . 7 8 17 21 20 21 71 77 83 88 93 91 99 114 116 113 114 112 115 115 130 130 130 144 144 156 Avg Prop Armor Cover (%) 4 | . . . . . . 4 . . . . . . . . . . . . . . . . . . . . Naked Turns . | . . . . . . . . . . . . . . . . . . . . . . . . . . . Heaviest Build 104 | 12 30 42 104 100 95 51 56 58 63 59 57 68 63 62 67 72 72 65 73 66 65 65 71 74 81 89 Greatest Support 94 | 40 40 40 40 40 40 54 57 66 66 66 57 59 69 68 68 68 68 68 68 68 68 68 71 71 85 94 Greatest Overweight (x) 28 | . . 1 2 2 2 1 . 1 . 1 . 1 . . . 1 1 . 1 . . . . 1 . 28 Average Overweight (x) . | . . . 1 2 1 . . . . . . . . . . . . . . . . . . . . . Largest Inventory Capacity 25 | 8 15 15 25 25 25 15 15 15 15 15 15 15 15 15 15 15 15 15 15 15 15 15 15 15 15 15 Average Capacity 19 | 7 10 15 24 25 23 15 15 15 15 15 15 15 15 15 15 15 15 15 15 15 15 15 15 15 15 15 Most Carried 25 | 5 11 15 25 24 25 15 15 15 15 15 15 15 15 15 15 15 15 15 15 15 15 14 15 13 15 15 Average Carried 17 | 3 7 13 22 20 21 13 15 14 14 14 14 14 14 14 15 14 15 14 14 14 14 14 14 13 13 14 Final Capacity 25 | 8 15 15 25 25 15 15 15 15 15 15 15 15 15 15 15 15 15 15 15 15 15 15 15 15 15 15 Final Carried 24 | 5 11 15 20 24 15 15 15 15 15 15 15 15 15 15 15 15 15 15 15 15 14 14 13 13 15 14 Class Distribution -------------------- 49% | Mutant 19% | Commander-Mutant 11% | Scavenger-Skirmisher 8% | Hacker-Mutant 7% | Scavenger-Mutant Dominant Class ---------------- Mutant | -10/Materials Mutant | -10/Mines Mutant | -10/Subcaves Mutant | -9/Recycling Commander-Mutant | -9/Scraptown Mutant | -6/Factory Mutant | -6/Waste Scavenger-Mutant | -6/Factory Scavenger-Mutant | -6/Lower Caves Scavenger-Mutant | -6/Lower Caves Mutant | -6/Zion Scavenger-Skirmisher | -5/Proximity Caves Scavenger-Skirmisher | -5/Factory Scavenger-Skirmisher | -5/Waste Scavenger-Skirmisher | -5/Factory Scavenger-Skirmisher | -5/Upper Caves Scavenger-Skirmisher | -5/Upper Caves Scavenger-Mutant | -5/Zhirov Scavenger-Mutant | -4/Proximity Caves Hacker-Mutant | -4/Factory Hacker-Mutant | -4/Upper Caves Hacker-Mutant | -4/Upper Caves Hacker-Mutant | -4/Warlord Hacker-Mutant | -3/Proximity Caves Hacker-Gunner | -3/Research Hacker-Skirmisher | -3/Testing Resources | -11 -10 -10 -10 -9 -9 -6 -6 -6 -6 -6 -6 -5 -5 -5 -5 -5 -5 -5 -4 -4 -4 -4 -4 -3 -3 -3 ----------- Run | Yrd Mat Min Sub Rec Scr Fac Was Fac Low Low Zio Pro Fac Was Fac Upp Upp Zhi Pro Fac Upp Upp War Pro Res Tes Matter Collected 5369 | 289 166 377 477 115 70 380 177 119 618 77 615 571 50 57 70 90 145 . 80 95 10 20 278 65 65 293 Remotely . | . . . . . . . . . . . . . . . . . . . . . . . . . . . Salvage Created 5239 | 248 422 619 234 102 36 419 . 21 461 89 233 87 107 . 351 97 24 107 60 375 . 130 141 25 488 363 Parts 256 | 22 27 20 13 3 7 31 . 1 15 4 13 3 1 . 14 5 1 1 5 17 . 6 5 1 23 18 Haulers Intercepted 9 | . 2 . . . . . . . . . . . 1 . 4 . . . . 1 . . . . 1 . Recyclers Shooed 10 | 1 7 1 . . . 1 . . . . . . . . . . . . . . . . . . . . Parts Field Recycled . | . . . . . . . . . . . . . . . . . . . . . . . . . . . Retrieved Matter . | . . . . . . . . . . . . . . . . . . . . . . . . . . . Parts Self-Destructed 85 | . . . 24 . . . . . 4 4 . 11 . . . 6 16 1 12 . 1 5 . 1 . . Prevented 86 | . . . . . . . . . . 2 . 4 . . . 19 16 . 13 . 13 19 . . . . Parts Restored . | . . . . . . . . . . . . . . . . . . . . . . . . . . . Kills | -11 -10 -10 -10 -9 -9 -6 -6 -6 -6 -6 -6 -5 -5 -5 -5 -5 -5 -5 -4 -4 -4 -4 -4 -3 -3 -3 ------- Run | Yrd Mat Min Sub Rec Scr Fac Was Fac Low Low Zio Pro Fac Was Fac Upp Upp Zhi Pro Fac Upp Upp War Pro Res Tes Combat Hostiles Destroyed 69 | . 9 7 3 3 . 8 . . 8 . . . . . . 5 2 . 1 3 . 1 4 1 7 7 Melee 6 | . . . . . . 3 . . 1 . . . . . . . . . . . . . 1 . . 1 Guns 13 | . 6 . . . . . . . . . . . . . . . . . . 1 . . 2 . 2 2 Cannons 17 | . 3 7 3 3 . 1 . . . . . . . . . . . . . . . . . . . . AOE 29 | . . . . . . 4 . . 7 . . . . . . 5 2 . 1 1 . . . 1 4 4 Classes Destroyed 22 | 2 4 1 1 2 1 2 . . 2 . 1 . . . . 1 . . . 2 . . 1 . . 2 Worker 10 | . . . . . . 1 . 1 . . . . . . 2 . . . . . . . . . 4 2 Builder 4 | . . 1 . . . 1 . . . . . . . . . . . . . . . . . . 1 1 Tunneler 10 | 8 . . . . . 1 . . . . . . . . 1 . . . . . . . . . . . Hauler 9 | . 2 . . . . . . . . . . . 1 . 4 . . . . 1 . . . . 1 . Recycler 10 | 1 1 7 . . . 1 . . . . . . . . . . . . . . . . . . . . Minesweeper 2 | . . . . . . . . . 1 1 . . . . . . . . . . . . . . . . Operator 1 | . 1 . . . . . . . . . . . . . . . . . . . . . . . . . Drone 4 | . . . . . . . . . . . . . . . . . . . . . . . . . . 4 Watcher 2 | . . . . . . . . . . . . . . . . . . . . 1 . . . . 1 . Swarmer 28 | . 3 3 1 . . 4 . . 1 . . . . . . 4 2 . . 2 . . . 1 5 2 Saboteur 1 | . . . . . . . . . . . . . . . . . . . . . . . 1 . . . Grunt 17 | . 6 4 1 . . . . . 3 . . . . . . . . . . . . . 1 . 1 1 Brawler 2 | . . . . . . . . . . . . . . . . 1 . . . . . . 1 . . . Duelist 4 | . . . . 1 . . . . 3 . . . . . . . . . . . . . . . . . Researcher 2 | . . . . . . . . . . . . . . . . . . . . . . . . . . 2 Sentry 3 | . . . . 2 . . . . 1 . . . . . . . . . . . . . . . . . Demolisher 1 | . . . . . 1 . . . . . . . . . . . . . . . . . . . . . Hunter 1 | . . . . . . . . . . . 1 . . . . . . . . . . . . . . . Programmer 5 | . . . . . . 4 . . . . . . . . . . . . 1 . . . . . . . Behemoth 4 | . . . . . . . . . . . . . . . . . . . . 1 . 1 1 . 1 . Subdweller 1 | . . . 1 . . . . . . . . . . . . . . . . . . . . . . . Packrat 1 | . . . . . . . . . 1 . . . . . . . . . . . . . . . . . Samaritan 7 | . . . . . . . . . 4 1 . 2 . . . . . . . . . . . . . . Wasp 2 | . . . . . . . . . . . 2 . . . . . . . . . . . . . . . Thug 2 | . . . . . . . . . . . 2 . . . . . . . . . . . . . . . Best Kill Streak 8 | 5 3 2 1 1 . 4 . 1 6 1 . . 1 . 3 4 2 . 1 2 . 1 2 1 8 6 Combat Bots Only 6 | . 3 2 1 1 . 4 . . 6 . . . . . . 4 2 . 1 2 . 1 2 1 5 4 Max Kills in Single Turn 3 | 1 2 1 1 1 1 3 . 1 2 1 1 1 1 . 2 2 2 . 1 2 . 1 1 1 3 2 Gunslinging 1 | . 1 . . . . . . . . . . . . . . . . . . . . . . . . . Exploded 3 | . . . . . . 3 . . 2 . . . . . . 2 2 . 1 1 . . . 1 2 2 Melee 1 | . . . . . . 1 . . 1 . . . . . . . . . . . . . 1 . . 1 Uniques/NPCs Destroyed . | . . . . . . . . . . . . . . . . . . . . . . . . . . . Combat | -11 -10 -10 -10 -9 -9 -6 -6 -6 -6 -6 -6 -5 -5 -5 -5 -5 -5 -5 -4 -4 -4 -4 -4 -3 -3 -3 -------- Run | Yrd Mat Min Sub Rec Scr Fac Was Fac Low Low Zio Pro Fac Was Fac Upp Upp Zhi Pro Fac Upp Upp War Pro Res Tes Hostile Shots Fired 718 | . 35 16 10 8 5 110 . 6 21 17 . 4 . . 2 6 10 . 7 3 8 10 63 52 35 290 Missed 279 | . 9 3 3 2 2 45 . 4 10 7 . . . . 2 2 4 . 3 2 4 8 32 38 16 83 Hits 439 | . 26 13 7 6 3 65 . 2 11 10 . 4 . . . 4 6 . 4 1 4 2 31 14 19 207 Melee 2 | . . . . 2 . . . . . . . . . . . . . . . . . . . . . . Projectile 437 | . 26 13 7 4 3 65 . 2 11 10 . 4 . . . 4 6 . 4 1 4 2 31 14 19 207 AOE 2 | . . . . . . . . . . . . . . . . . . . . . . . 2 . . . Critical Strikes 24 | . 1 . . 1 . 1 . . 2 2 . . . . . . 1 . . . . . 3 . . 13 Part Disruptions 2 | . . . . . . 1 . . . . . . . . . . . . . . . . . . . 1 Damage Taken 8627 | . 286 157 238 124 54 1108 . 57 362 185 . 59 40 92 37 59 126 . 82 22 121 49 594 356 395 4024 Core 1979 | . 30 12 19 32 23 400 . 23 52 . . . 20 . . . 33 . . . . . 68 45 34 1188 Absorbed by Shields 289 | . . . . . . . . . . . . . . . . . . . . . . . 119 . 74 96 Redirected to Shielding 161 | . . . . . . . . . . . . . . . . . . . . . . . 64 34 63 . Regen/Repaired (Parts) 246 | . . . . . . . 126 . . . . . . 37 . . . . . . . . 83 . . . Core Remaining (%) 76 | 100 . . . . 53 . . . . . . 44 . . . . . . 94 . . . . 90 . . Volleys Fired 428 | 19 45 36 62 10 1 14 . . 18 . . 3 2 9 13 8 6 . 12 15 8 4 56 9 32 46 Largest 3 | 2 2 2 2 2 1 2 . . 1 . . 3 3 3 3 3 3 . 1 2 2 2 2 2 3 3 Hottest 260 | 70 70 78 85 85 . 77 . . 52 . . 180 180 180 180 180 190 . 90 125 130 130 260 130 195 220 Shots Fired 727 | 38 87 72 72 18 1 16 . . 18 . . 7 6 25 29 16 9 . 12 24 16 8 99 17 74 63 Gun 469 | 38 74 5 14 . . 3 . . . . . 7 6 24 26 13 8 . 8 20 16 8 88 16 64 31 Cannon 209 | . 13 67 57 18 . 8 . . . . . . . . 3 1 . . 4 3 . . . . 6 29 Launcher 34 | . . . 1 . . 4 . . 16 . . . . . . 2 1 . . 1 . . 2 1 4 2 Special 15 | . . . . . 1 1 . . 2 . . . . 1 . . . . . . . . 9 . . 1 Kinetic 252 | 19 58 72 67 18 . 12 . . . . . . . . . . . . . . . . . . . 6 Thermal 100 | 19 29 . 5 . . . . . . . . . . . 3 1 . . 4 3 . . 2 . 6 28 Explosive 27 | . . . . . . . . . 16 . . . . . . 2 1 . . 1 . . . 1 4 2 Electromagnetic 333 | . . . . . . 3 . . . . . 7 6 24 26 13 8 . 8 20 16 8 88 16 64 26 Robot Hit Streak 18 | 9 18 9 7 5 3 4 . . 3 . . 5 5 7 6 4 3 . 8 6 3 5 7 8 14 10 Robot Miss Streak 7 | 2 3 5 1 2 . 1 . . 2 . . 1 1 2 3 3 1 . 2 2 3 1 5 2 3 7 Penetration Max 1 | . . . . . . . . . . . . . . . . . . . . . . . . . . 1 Secondary Targets 3 | . 1 . . . . . . . . . . . . . . . . . . 1 . . . . 1 . Max Gunslinging Chain 1 | . 1 . . . . . . . . . . . . . . . . . . 1 . . . . 1 . Shots Hit Robots 467 | 25 65 43 23 12 2 21 1 1 17 2 11 8 6 25 20 10 5 1 6 17 7 7 54 12 39 27 Core Hits 237 | 11 19 17 10 3 1 15 . . 23 2 4 5 1 4 19 11 2 1 3 9 2 1 26 8 23 17 Critical Kills 7 | . . 4 . . . . . . . . . . . . . . . . . . . . . . . 3 Critical Parts Destroyed 11 | . . 6 1 1 . . . . . . . . . . . . . . . . . . . . . 3 Critical Strikes 28 | 1 3 11 2 1 . 2 . . . . . . . . . . . . . . . . . . . 8 Burn 4 | 1 3 . . . . . . . . . . . . . . . . . . . . . . . . . Destroy 20 | . . 10 2 1 . . . . . . . . . . . . . . . . . . . . . 7 Blast 1 | . . 1 . . . . . . . . . . . . . . . . . . . . . . . . Sever 2 | . . . . . . 2 . . . . . . . . . . . . . . . . . . . . Impale 1 | . . . . . . . . . . . . . . . . . . . . . . . . . . 1 Melee Attacks 87 | . . . . . 3 25 1 5 18 3 12 1 . . . . . 1 2 1 . 1 1 2 1 10 Impact . | . . . . . . . . . . . . . . . . . . . . . . . . . . . Slashing 56 | . . . . . 3 25 1 5 18 3 1 . . . . . . . . . . . . . . . Piercing 31 | . . . . . . . . . . . 11 1 . . . . . 1 2 1 . 1 1 2 1 10 Sneak Attacks 28 | . . . . . 1 4 1 1 6 2 11 1 . . . . . . . . . . . . . 1 Combat Hostiles 1 | . . . . . . 1 . . . . . . . . . . . . . . . . . . . . Follow-up Attacks . | . . . . . . . . . . . . . . . . . . . . . . . . . . . Damage Inflicted 14332 | 269 756 862 347 316 82 1296 84 74 1936 151 734 323 209 84 640 861 207 66 403 303 48 91 1052 353 1614 1171 Guns 4245 | 269 597 22 147 . . 40 . . . . . 131 140 28 399 183 74 . 71 184 48 91 761 182 589 289 Cannons 1580 | . 130 786 200 301 . 103 . . . . . . . . . . . . . . . . . . . 60 Explosions 5240 | . . . . . . 288 . . 1218 . . 122 69 56 241 678 133 . 332 119 . . 291 171 1025 497 Melee 2957 | . . . . . 70 865 84 74 718 151 734 70 . . . . . 66 . . . . . . . 125 Ramming 310 | . 29 54 . 15 12 . . . . . . . . . . . . . . . . . . . . 200 Kinetic 2353 | 79 386 808 347 301 . 367 . . . . . . . . . . . . . . . . . . . 65 Thermal 2029 | 190 341 . . . . . . . . . . . 69 56 241 240 . . 332 119 . . 291 . . 150 Explosive 3359 | . . . . . . . . . 1218 . . . . . . 438 133 . . . . . . 171 1025 374 Electromagnetic 3324 | . . . . . . 64 . . . . . 253 140 28 399 183 74 . 71 184 48 91 761 182 589 257 Impact . | . . . . . . . . . . . . . . . . . . . . . . . . . . . Slashing 1962 | . . . . . 70 865 84 74 718 151 . . . . . . . . . . . . . . . . Piercing 995 | . . . . . . . . . . . 734 70 . . . . . 66 . . . . . . . 125 Highest Corruption 54 | . . . . . . 3 3 5 5 5 5 . . . . . . . . . . . 3 3 . 54 Average Corruption 6 | . . . . . . 1 3 3 5 5 5 . . . . . . . . . . . 2 3 . 18 Corruption Purged . | . . . . . . . . . . . . . . . . . . . . . . . . . . . Corruption Blocked . | . . . . . . . . . . . . . . . . . . . . . . . . . . . Effects 98 | . . . . . . 9 6 9 18 18 1 . . . . . . . . . . . 4 2 . 31 Message Errors 26 | . . . . . . 5 . 3 4 4 . . . . . . . . . . . . 1 . . 9 Matter Fused 32 | . . . . . . 3 1 2 9 4 1 . . . . . . . . . . . 3 1 . 8 Heat Flow Errors 10 | . . . . . . . 1 2 1 2 . . . . . . . . . . . . . . . 4 Energy Discharges 10 | . . . . . . . 3 . 2 2 . . . . . . . . . . . . . 1 . 2 Parts Rejected 2 | . . . . . . . . . 1 . . . . . . . . . . . . . . . . 1 Parts Fused 2 | . . . . . . 1 . . . . . . . . . . . . . . . . . . . 1 Data Loss (minor) 7 | . . . . . . . . 1 . 3 . . . . . . . . . . . . . . . 3 Data Loss (major) 6 | . . . . . . . 1 1 1 3 . . . . . . . . . . . . . . . . Misfires 1 | . . . . . . . . . . . . . . . . . . . . . . . . . . 1 Alerts 1 | . . . . . . . . . . . . . . . . . . . . . . . . . . 1 Weapon Failures 1 | . . . . . . . . . . . . . . . . . . . . . . . . . . 1 Overload Shots . | . . . . . . . . . . . . . . . . . . . . . . . . . . . Overflow Damage 1075 | . . 38 . 6 . 305 9 34 280 . 48 9 . . 3 4 . . 47 2 . . . . 85 205 Projectiles 47 | . . 31 . 6 . 10 . . . . . . . . . . . . . . . . . . . . Explosions 177 | . . . . . . 5 . . 7 . . . . . 3 4 . . 47 2 . . . . 85 24 Melee 851 | . . 7 . . . 290 9 34 273 . 48 9 . . . . . . . . . . . . . 181 Knockbacks 16 | . . 6 . 4 . 3 . . . . . . . . . . . . . . . . . . . 3 Impact 2 | . . . . 1 . . . . . . . . . . . . . . . . . . . . . 1 Kinetic 13 | . . 5 . 3 . 3 . . . . . . . . . . . . . . . . . . . 2 Secondary 1 | . . 1 . . . . . . . . . . . . . . . . . . . . . . . . Self-Inflicted Damage 514 | . . . . . 6 136 . . 79 . . . 40 . 21 . . . . . . . 57 . . 175 Shots 10 | . . . . . . 4 . . 2 . . . 1 . 1 . . . . . . . 1 . . 1 Rammed 24 | . 7 8 . 4 1 . . . . . . . . . . . . . . . . . . . . 4 Targets Rammed 25 | . 8 8 . 4 1 . . . . . . . . . . . . . . . . . . . . 4 Kicked . | . . . . . . . . . . . . . . . . . . . . . . . . . . . Crushed 1 | . 1 . . . . . . . . . . . . . . . . . . . . . . . . . Highest Temperature 382 | 170 159 108 . 45 . 12 218 246 267 216 . 51 112 140 108 93 66 . 44 48 46 46 382 6 182 209 Average Temperature 46 | 74 43 29 . 21 . 5 82 110 117 93 . 8 63 58 36 31 23 . 15 19 19 22 41 3 58 67 Received Heat Transfer 857 | . 123 57 12 18 24 171 . . 54 126 . . . . 12 . 46 . 9 . . . 39 33 45 88 Siege Activations . | . . . . . . . . . . . . . . . . . . . . . . . . . . . Martial Activations . | . . . . . . . . . . . . . . . . . . . . . . . . . . . Shielding Activations . | . . . . . . . . . . . . . . . . . . . . . . . . . . . Robots Disrupted 14 | . . . . . . . . . . . . . . . . . . . . . . . 6 3 3 2 Combat Hostiles 10 | . . . . . . . . . . . . . . . . . . . . . . . 4 2 3 1 Robots Corrupted 2 | . . . . . . . . . . . . . 1 . . . . . . . . . . . 1 . Combat Hostiles . | . . . . . . . . . . . . . . . . . . . . . . . . . . . Parts Fried 14 | . 2 . . . . . . . . . . 6 2 . 2 . . . . 1 . . . . 1 . Impact Corruptions 3 | . . 1 . . . . . . . . . . . . . . . . . . . . . . . 2 Robots Melted . | . . . . . . . . . . . . . . . . . . . . . . . . . . . Combat Hostiles . | . . . . . . . . . . . . . . . . . . . . . . . . . . . Parts Melted 5 | 3 1 . 1 . . . . . . . . . . . . . . . . . . . . . . . Heat Transferred 3125 | 629 1184 . . . . . . . . . . . 100 50 300 150 . . 150 150 . . 275 . . 137 Parts Sabotaged . | . . . . . . . . . . . . . . . . . . . . . . . . . . . Parts Stolen . | . . . . . . . . . . . . . . . . . . . . . . . . . . . Parts Stripped . | . . . . . . . . . . . . . . . . . . . . . . . . . . . Power Chain Reactions 14 | . . . . . . . . . . . . 2 1 1 3 2 . . 2 1 . . 1 . . 1 Alert | -11 -10 -10 -10 -9 -9 -6 -6 -6 -6 -6 -6 -5 -5 -5 -5 -5 -5 -5 -4 -4 -4 -4 -4 -3 -3 -3 ------- Run | Yrd Mat Min Sub Rec Scr Fac Was Fac Low Low Zio Pro Fac Was Fac Upp Upp Zhi Pro Fac Upp Upp War Pro Res Tes Maximum Alert Level 4 | . . . . . . . . 2 . . . . 1 . 4 . . . . 3 . . . . 1 1 Low Security (%) 82 | 100 100 100 . 100 . 100 100 25 . . . . 53 100 34 . . . . 35 . . . . 58 16 Level 1 12 | . . . . . . . . 41 . . . . 46 . 3 . . . . 12 . . . . 41 83 Level 2 3 | . . . . . . . . 32 . . . . . . 24 . . . . 33 . . . . . . Level 3 . | . . . . . . . . . . . . . . . 6 . . . . 18 . . . . . . Level 4 1 | . . . . . . . . . . . . . . . 31 . . . . . . . . . . . Level 5 . | . . . . . . . . . . . . . . . . . . . . . . . . . . . High Security . | . . . . . . . . . . . . . . . . . . . . . . . . . . . Max Security . | . . . . . . . . . . . . . . . . . . . . . . . . . . . Peak Influence 1317 | 15 93 99 . 189 . 132 24 630 . . . . 305 99 1317 . . . . 770 . . . . 387 354 Initial 204 | . 3 14 . 86 . . 24 . . . . . . 99 . . . . . 56 . . . . 56 204 Average 104 | 2 23 19 . 42 . 33 2 324 . . . . 126 19 612 . . . . 399 . . . . 206 247 Influence Increases 10576 | 45 376 256 220 408 . 426 . 1062 225 202 . 453 345 80 1539 657 641 7 409 950 179 209 371 204 705 607 Destroy 0b10 Robot/C 4320 | . 180 140 140 80 . 160 . 420 200 80 . 200 40 . 360 360 400 . 220 280 100 120 260 80 300 200 Destroy 0b10 Robot/NC 360 | 45 20 40 . 10 . 20 . 20 10 5 . . 15 . 65 . 5 5 . 45 . . . . 40 15 Destroy Leader 626 | . 34 20 10 . . 50 . 82 . . . 30 22 . 108 20 20 . 40 66 30 30 . 20 34 10 Allied During Kill 2198 | . . . 40 5 . . . 383 . 27 . 223 72 . 521 262 216 2 74 118 49 59 81 29 33 4 Successful Hack 188 | . 22 8 . 47 . 10 . 48 . . . . . . 8 . . . . 12 . . . . 12 21 Select Force Hacks 240 | . . . . 240 . . . . . . . . . . . . . . . . . . . . . . Disable Machine 705 | . . . . . . 60 . 60 . . . . 150 . 45 . . . . 255 . . . . . 135 Anti-Garrison Action 150 | . . . . . . . . . . . . . . . 150 . . . . . . . . . . . Destroy Structure 874 | . . 18 . 26 . 66 . 4 . . . . 46 80 252 . . . . 174 . . . . 106 102 Partial Spotted 180 | . . . . . . 45 . . . . . . . . 15 . . . . . . . . . 60 60 Lose Combat Pursuer 735 | . 120 30 30 . . 15 . 45 15 90 . . . . 15 15 . . 75 . . . 30 75 120 60 Influence Decreases 10413 | 40 344 289 44 588 . 355 71 583 640 209 57 453 60 365 400 770 606 1068 320 299 512 388 577 142 426 807 Entered New Map 3104 | . 2 23 3 94 . . 47 . 178 13 57 . . 186 . 422 196 1061 . 33 274 78 228 22 28 159 Time Decay 5233 | 40 322 266 41 487 . 295 24 213 362 169 . 433 40 86 180 278 350 7 140 170 198 230 206 90 238 368 Lost Part 337 | . 20 . . . . 60 . . . 7 . . . . . . . . . . . . 10 . 20 220 Lost Ally 1739 | . . . . 7 . . . 370 100 20 . 20 20 93 220 70 60 . 180 96 40 80 133 30 140 60 Squads Dispatched 45 | . 3 1 . . . 6 . 5 . . . . 1 . 8 . 1 . 1 4 . . . . 7 8 Investigation 7 | . . 1 . . . . . 2 . . . . . . 1 . . . . 3 . . . . . . Extermination 11 | . . . . . . 5 . 1 . . . . . . . . . . . . . . . . 2 3 Reinforcement 22 | . 3 . . . . 1 . 2 . . . . 1 . 4 . . . . 1 . . . . 5 5 Assault 4 | . . . . . . . . . . . . . . . 2 . 1 . 1 . . . . . . . Garrison 1 | . . . . . . . . . . . . . . . 1 . . . . . . . . . . . Intercept . | . . . . . . . . . . . . . . . . . . . . . . . . . . . Searches Triggered . | . . . . . . . . . . . . . . . . . . . . . . . . . . . Construction Impeded 3 | . . . . . . . . 1 . . . . 1 . 1 . . . . . . . . . . . Haulers Reinforced 4 | . . . . . . . . . . . . . . . 3 . . . . . . . . . 1 . Active Scanning Responses . | . . . . . . . . . . . . . . . . . . . . . . . . . . . Cargo Convoy Interrupts . | . . . . . . . . . . . . . . . . . . . . . . . . . . . Stealth | -11 -10 -10 -10 -9 -9 -6 -6 -6 -6 -6 -6 -5 -5 -5 -5 -5 -5 -5 -4 -4 -4 -4 -4 -3 -3 -3 --------- Run | Yrd Mat Min Sub Rec Scr Fac Was Fac Low Low Zio Pro Fac Was Fac Upp Upp Zhi Pro Fac Upp Upp War Pro Res Tes Distress Signals 11 | . 2 . . . . . . . . . . . . . 5 . . . . . . . 1 . 2 1 Communications Jammed 185 | . . . . . . . . . . . . . . . . . . . . 3 . . 160 . . 22 Distress Signals 177 | . . . . . . . . . . . . . . . . . . . . 1 . . 160 . . 16 Times Spotted 361 | . 26 9 15 6 5 26 . 9 8 7 . 6 . 7 15 7 13 . 11 13 4 5 87 11 26 45 Peak Tracking Total 15 | . 5 2 3 2 3 10 . 3 7 2 . 4 . 5 5 4 6 . 7 3 2 1 15 5 11 13 Tactical Retreats 34 | . 6 2 1 . . 1 . 1 1 4 . . . 1 1 1 . . 3 . . . 2 2 4 4 Traps | -11 -10 -10 -10 -9 -9 -6 -6 -6 -6 -6 -6 -5 -5 -5 -5 -5 -5 -5 -4 -4 -4 -4 -4 -3 -3 -3 ------- Run | Yrd Mat Min Sub Rec Scr Fac Was Fac Low Low Zio Pro Fac Was Fac Upp Upp Zhi Pro Fac Upp Upp War Pro Res Tes Traps Triggered 10 | . 3 . 1 . . 1 . 1 1 . . . 1 . . . . . . . . . . . . 2 Indirectly . | . . . . . . . . . . . . . . . . . . . . . . . . . . . Trap Hack Attempts . | . . . . . . . . . . . . . . . . . . . . . . . . . . . Triggered . | . . . . . . . . . . . . . . . . . . . . . . . . . . . Disarmed . | . . . . . . . . . . . . . . . . . . . . . . . . . . . Reprogrammed . | . . . . . . . . . . . . . . . . . . . . . . . . . . . Reused 1 | . . . . . 1 . . . . . . . . . . . . . . . . . . . . . Traps Extracted . | . . . . . . . . . . . . . . . . . . . . . . . . . . . Installed 1 | . . . . . 1 . . . . . . . . . . . . . . . . . . . . . Triggered . | . . . . . . . . . . . . . . . . . . . . . . . . . . . Most Traps Carried 1 | . . . . . 1 . . . . . . . . . . . . . . . . . . . . . Machines | -11 -10 -10 -10 -9 -9 -6 -6 -6 -6 -6 -6 -5 -5 -5 -5 -5 -5 -5 -4 -4 -4 -4 -4 -3 -3 -3 ---------- Run | Yrd Mat Min Sub Rec Scr Fac Was Fac Low Low Zio Pro Fac Was Fac Upp Upp Zhi Pro Fac Upp Upp War Pro Res Tes Machines Disabled 56 | . . . 2 . 1 4 . 4 . . . 2 10 . 4 . 2 . . 17 . . 1 . . 9 Max in Single Turn 2 | . . . 1 . 1 2 . . . . . . . . . . . . . 2 . . 1 . . 2 Garrison Access 2 | . . . . . . . . . . . . . 1 . 1 . . . . . . . . . . . Machines Repaired . | . . . . . . . . . . . . . . . . . . . . . . . . . . . Machines Dismantled . | . . . . . . . . . . . . . . . . . . . . . . . . . . . Machines Sabotaged . | . . . . . . . . . . . . . . . . . . . . . . . . . . . Overloaded Fab Kills . | . . . . . . . . . . . . . . . . . . . . . . . . . . . Hacking | -11 -10 -10 -10 -9 -9 -6 -6 -6 -6 -6 -6 -5 -5 -5 -5 -5 -5 -5 -4 -4 -4 -4 -4 -3 -3 -3 --------- Run | Yrd Mat Min Sub Rec Scr Fac Was Fac Low Low Zio Pro Fac Was Fac Upp Upp Zhi Pro Fac Upp Upp War Pro Res Tes Machines Accessed 77 | . 6 2 2 14 2 8 . 11 3 1 . . 2 . 3 1 1 4 . 5 . 1 3 . 5 3 Terminals 32 | . 5 1 . 6 . 5 . 6 . . . . . . 1 . . . . 2 . . . . 4 2 Fabricators 9 | . . . . . . 1 . 4 . . . . . . 1 . . . . 3 . . . . . . Repair Stations 1 | . 1 . . . . . . . . . . . . . . . . . . . . . . . . . Recycling Units 10 | . . . . 8 . . . . . . . . 1 . 1 . . . . . . . . . . . Scanalyzers 2 | . . . . . . . . 1 . . . . . . . . . . . . . . . . . 1 Garrison Access 4 | . . . . . . 2 . . . . . . 1 . . . . . . . . . . . 1 . Total Hacks 176 | . 17 2 5 23 7 14 . 25 7 1 . . 2 . 7 1 1 17 . 21 . 1 8 . 10 7 Successful 108 | . 11 2 5 18 7 3 . 5 7 1 . . 2 . 1 1 1 17 . 12 . 1 8 . 3 3 Failed 68 | . 6 . . 5 . 11 . 20 . . . . . . 6 . . . . 9 . . . . 7 4 Catastrophic 20 | . . . . . . 7 . 5 . . . . . . 3 . . . . . . . . . 4 1 Database Lockouts . | . . . . . . . . . . . . . . . . . . . . . . . . . . . Manual 72 | . 16 . . 17 . 7 . 11 . . . . . . 3 . . . . 8 . . . . 8 2 Terminals 79 | . 16 1 . 14 . 8 . 16 . . . . . . 3 . . . . 9 . . . . 9 3 Fabricators 27 | . . . . . . 4 . 8 . . . . . . 3 . . . . 12 . . . . . . Repair Stations 1 | . 1 . . . . . . . . . . . . . . . . . . . . . . . . . Recycling Units 11 | . . . . 9 . . . . . . . . 1 . 1 . . . . . . . . . . . Scanalyzers 5 | . . . . . . . . 1 . . . . . . . . . . . . . . . . . 4 Garrison Access 4 | . . . . . . 2 . . . . . . 1 . . . . . . . . . . . 1 . Terminal Hacks 68 | . 4 2 5 3 7 1 . 1 7 1 . . . . 1 1 1 17 . 5 . 1 8 . 2 1 Record 23 | . . . 4 . . . . . 5 . . . . . . . . 5 . . . . 8 . 1 . Part Schematic 5 | . . . . 1 . . . . . . . . . . . . . 4 . . . . . . . . Robot Analysis 12 | . 2 . . . 6 . . . . . . . . . . . . 4 . . . . . . . . Prototype ID Bank 6 | . . . . 1 . . . . . . . . . . . . . 4 . 1 . . . . . . Open Door 7 | . . 1 . . . . . . 2 1 . . . . . 1 1 . . . . 1 . . . . Level Access Points 1 | . . 1 . . . . . . . . . . . . . . . . . . . . . . . . Branch Access Points 4 | . . . . . . 1 . . . . . . . . 1 . . . . 1 . . . . 1 . Fabricator Index 1 | . . . . . . . . . . . . . . . . . . . . 1 . . . . . . Dispatch Records 1 | . 1 . . . . . . . . . . . . . . . . . . . . . . . . . Recall Investigation 1 | . . . . . . . . . . . . . . . . . . . . 1 . . . . . . Hauler Manifests 2 | . 1 . . . . . . . . . . . . . . . . . . 1 . . . . . . Zone Layout 3 | . . . . 1 . . . 1 . . . . . . . . . . . . . . . . . 1 Proto ID Catalog 2 | . . . 1 . 1 . . . . . . . . . . . . . . . . . . . . . Fabricator Hacks 8 | . . . . . . 1 . 3 . . . . . . . . . . . 4 . . . . . . Network Status 1 | . . . . . . . . 1 . . . . . . . . . . . . . . . . . . Load Schematic 3 | . . . . . . . . . . . . . . . . . . . . 3 . . . . . . Build 4 | . . . . . . 1 . 2 . . . . . . . . . . . 1 . . . . . . Repair Station Hacks 1 | . 1 . . . . . . . . . . . . . . . . . . . . . . . . . Refit 1 | . 1 . . . . . . . . . . . . . . . . . . . . . . . . . Recycling Unit Hacks 1 | . . . . . . . . . . . . . 1 . . . . . . . . . . . . . Retrieve Components 1 | . . . . . . . . . . . . . 1 . . . . . . . . . . . . . Scanalyzer 2 | . . . . . . . . . . . . . . . . . . . . . . . . . . 2 Retrieve Study 2 | . . . . . . . . . . . . . . . . . . . . . . . . . . 2 Garrison Access Hacks 1 | . . . . . . . . . . . . . 1 . . . . . . . . . . . . . Seal Access 1 | . . . . . . . . . . . . . 1 . . . . . . . . . . . . . Unauthorized Hacks 27 | . 6 . . 15 . 1 . 1 . . . . . . . . . . . 3 . . . . 1 . Terminals 17 | . 6 . . 7 . 1 . 1 . . . . . . . . . . . 1 . . . . 1 . Botnet 7 | . 1 . . 2 . 1 . 1 . . . . . . . . . . . 1 . . . . 1 . Skim 10 | . 5 . . 5 . . . . . . . . . . . . . . . . . . . . . . Fabricators 2 | . . . . . . . . . . . . . . . . . . . . 2 . . . . . . Prioritize 2 | . . . . . . . . . . . . . . . . . . . . 2 . . . . . . Repair Stations . | . . . . . . . . . . . . . . . . . . . . . . . . . . . Recycling Units 8 | . . . . 8 . . . . . . . . . . . . . . . . . . . . . . Tunnel 8 | . . . . 8 . . . . . . . . . . . . . . . . . . . . . . Scanalyzers . | . . . . . . . . . . . . . . . . . . . . . . . . . . . Garrison Access . | . . . . . . . . . . . . . . . . . . . . . . . . . . . Data Cores Recovered . | . . . . . . . . . . . . . . . . . . . . . . . . . . . Used . | . . . . . . . . . . . . . . . . . . . . . . . . . . . Hacking Detections 41 | . 5 1 . 4 . 7 . 9 . . . . . . 3 . . . . 5 . . . . 5 2 Full Trace Events 6 | . . . . . . . . 2 . . . . . . 1 . . . . 3 . . . . . . Feedback Events . | . . . . . . . . . . . . . . . . . . . . . . . . . . . Feedback Blocked . | . . . . . . . . . . . . . . . . . . . . . . . . . . . Robot Schematics Acquired 3 | . . . . . . . . . . . 3 . . . . . . . . . . . . . . . Robots Built 5 | . . . . . . . . 5 . . . . . . . . . . . . . . . . . . Authchips . | . . . . . . . . . . . . . . . . . . . . . . . . . . . Time 174 | . . . . . . . . 174 . . . . . . . . . . . . . . . . . . Total Robot Build Rating 14 | . . . . . . . . 14 . . . . . . . . . . . . . . . . . . Part Schematics Acquired 25 | . . . . 1 . . . . . . 15 . . . . . . 4 . . . . . . . 5 Parts Built 3 | . . . . . . 2 . . . . . . . . . . . . . 1 . . . . . . Authchips . | . . . . . . . . . . . . . . . . . . . . . . . . . . . Time 175 | . . . . . . 117 . . . . . . . . . . . . . 58 . . . . . . Total Part Build Rating 21 | . . . . . . 14 . . . . . . . . . . . . . 7 . . . . . . Part Studies Acquired 2 | . . . . . . . . . . . . . . . . . . . . . . . . . . 2 Parts Repaired . | . . . . . . . . . . . . . . . . . . . . . . . . . . . Time . | . . . . . . . . . . . . . . . . . . . . . . . . . . . Parts Recycled . | . . . . . . . . . . . . . . . . . . . . . . . . . . . Recycled Matter . | . . . . . . . . . . . . . . . . . . . . . . . . . . . Retrieved Matter . | . . . . . . . . . . . . . . . . . . . . . . . . . . . Retrieved Components 2 | . . . . . . . . . . . . . 2 . . . . . . . . . . . . . Parts Scanalyzed . | . . . . . . . . . . . . . . . . . . . . . . . . . . . Part Schematics Acquired . | . . . . . . . . . . . . . . . . . . . . . . . . . . . Parts Damaged . | . . . . . . . . . . . . . . . . . . . . . . . . . . . Bothacking | -11 -10 -10 -10 -9 -9 -6 -6 -6 -6 -6 -6 -5 -5 -5 -5 -5 -5 -5 -4 -4 -4 -4 -4 -3 -3 -3 ------------ Run | Yrd Mat Min Sub Rec Scr Fac Was Fac Low Low Zio Pro Fac Was Fac Upp Upp Zhi Pro Fac Upp Upp War Pro Res Tes Used RIF Installer . | . . . . . . . . . . . . . . . . . . . . . . . . . . . Robots Hacked . | . . . . . . . . . . . . . . . . . . . . . . . . . . . Non-combat . | . . . . . . . . . . . . . . . . . . . . . . . . . . . Combat . | . . . . . . . . . . . . . . . . . . . . . . . . . . . Robot Hacks Applied . | . . . . . . . . . . . . . . . . . . . . . . . . . . . Relay Couplers Released 1 | . . . . . . . . . . . . . . . 1 . . . . . . . . . . . Machine Destruction 1 | . . . . . . . . . . . . . . . 1 . . . . . . . . . . . Fabnet Peak Effective % . | . . . . . . . . . . . . . . . . . . . . . . . . . . . Robots Rewired 22 | . . . . 6 . . . . 2 . . . . 1 . 2 1 . . . . . 5 1 2 2 Allies Hacked 3 | . . . . . . . . . . . . . . . . . . . 1 . . . 1 . 1 . Hacks Repelled 1 | . . . . . . . . . . . . . . . . . . . . . . . 1 . . . Allies | -11 -10 -10 -10 -9 -9 -6 -6 -6 -6 -6 -6 -5 -5 -5 -5 -5 -5 -5 -4 -4 -4 -4 -4 -3 -3 -3 -------- Run | Yrd Mat Min Sub Rec Scr Fac Was Fac Low Low Zio Pro Fac Was Fac Upp Upp Zhi Pro Fac Upp Upp War Pro Res Tes Total Allies 148 | . . 3 7 6 . . 20 5 5 5 12 6 1 20 4 3 2 . 7 9 3 5 6 8 9 2 Largest Group 20 | . . 3 6 6 6 . 20 20 3 5 11 12 10 20 19 10 6 4 5 4 4 5 10 5 5 1 Highest-Rated Group 928 | . . 40 114 76 76 . 680 680 60 359 554 635 538 766 928 555 423 256 337 324 324 380 663 373 370 64 Highest-Rated Ally 141 | . . 16 19 34 34 . 50 50 29 81 81 81 81 141 81 81 81 81 81 81 81 81 81 81 81 64 Initial UFD Resources 31 | . . . . . . 22 22 22 22 22 22 26 26 26 26 26 26 26 29 29 29 29 29 31 31 31 Total Orders 7 | . . . . . 1 . . . . . . . . . . . . . . . . . 6 . . . STAY 4 | . . . . . 1 . . . . . . . . . . . . . . . . . 3 . . . FOLLOW 1 | . . . . . . . . . . . . . . . . . . . . . . . 1 . . . AID 2 | . . . . . . . . . . . . . . . . . . . . . . . 2 . . . Ally Attacks 1029 | . . . 65 18 . . . 158 12 18 . 47 6 177 115 46 42 . 63 37 55 28 71 17 45 9 Total Damage 33472 | . . . 872 326 . . . 2944 229 688 . 1684 338 5023 4707 1791 2857 . 2019 2137 1162 790 2965 1277 1455 208 Kills 211 | . . . 12 3 . . . 25 2 4 . 21 4 10 26 14 20 . 12 18 6 5 11 5 12 1 Allies Corrupted 6 | . . . 1 . . . . 1 . . . . . . . 1 . . . . . . 2 . 1 . Allies Melted 10 | . . . . . 2 . . 1 . . . . . . 1 1 . . . 2 . . 2 . 1 . Intel | -11 -10 -10 -10 -9 -9 -6 -6 -6 -6 -6 -6 -5 -5 -5 -5 -5 -5 -5 -4 -4 -4 -4 -4 -3 -3 -3 ------- Run | Yrd Mat Min Sub Rec Scr Fac Was Fac Low Low Zio Pro Fac Was Fac Upp Upp Zhi Pro Fac Upp Upp War Pro Res Tes Active Infowar (turns) 12284 | 105 346 . 571 . . 357 330 514 829 547 993 1607 162 348 379 610 782 136 498 376 408 499 834 . 205 848 Sensors 10706 | . . . . . . 357 330 514 829 547 993 1607 162 348 379 610 780 136 498 376 408 499 834 . . 499 Seismic 1022 | 105 346 . 571 . . . . . . . . . . . . . . . . . . . . . . . T.N.C. 2 | . . . . . . . . . . . . . . . . . 2 . . . . . . . . . Cloaking 3 | . . . . . . . . . . . . . 3 . . . . . . . . . . . . . Jamming 3038 | . . . . . . . . . . . . . . . . . . . . 376 408 499 702 . 205 848 ECM 2 | . . . . . . . . . . . . . . . . . 2 . . . . . . . . . Robot Analysis Total 12 | . 2 . . . 6 . . . . . . . . . . . . 4 . . . . . . . . Derelict Logs Recovered 24 | . . 1 2 . 4 . . . 3 2 1 2 . . . 2 1 . 2 . 3 1 . . . . Drone Launches . | . . . . . . . . . . . . . . . . . . . . . . . . . . . Drone Recoveries . | . . . . . . . . . . . . . . . . . . . . . . . . . . . Exploration | -11 -10 -10 -10 -9 -9 -6 -6 -6 -6 -6 -6 -5 -5 -5 -5 -5 -5 -5 -4 -4 -4 -4 -4 -3 -3 -3 ------------- Run | Yrd Mat Min Sub Rec Scr Fac Was Fac Low Low Zio Pro Fac Was Fac Upp Upp Zhi Pro Fac Upp Upp War Pro Res Tes Turns Passed 31742 | 238 1155 2298 7330 2090 5550 1177 330 514 829 758 993 1607 162 380 379 610 786 147 498 376 408 499 1047 216 517 848 Spaces Moved 23096 | 81 512 988 2068 575 1851 1058 397 810 1334 1199 1218 1204 303 493 508 1039 1011 153 887 603 714 904 1225 266 898 797 Core 5 | 3 . . . . . . . . . . . . . . . . . . . . . . . . . 2 Treads 5581 | 78 512 988 2068 575 1360 . . . . . . . . . . . . . . . . . . . . . Legs . | . . . . . . . . . . . . . . . . . . . . . . . . . . . Wheels . | . . . . . . . . . . . . . . . . . . . . . . . . . . . Hover 17510 | . . . . . 491 1058 397 810 1334 1199 1218 1204 303 493 508 1039 1011 153 887 603 714 904 1225 266 898 795 Flight . | . . . . . . . . . . . . . . . . . . . . . . . . . . . Fastest Speed 38 | 50 160 160 240 340 77 58 58 53 53 53 60 55 47 47 49 49 49 49 49 49 49 49 41 41 38 38 Average Speed 115 | 155 160 187 335 340 278 88 59 58 53 56 60 107 47 48 49 49 66 49 49 49 49 49 45 41 38 41 Slowest Speed 1450 | 160 160 240 340 340 340 150 60 122 53 122 60 115 49 49 49 104 104 49 104 49 49 49 49 91 38 1450 Overloaded Moves . | . . . . . . . . . . . . . . . . . . . . . . . . . . . Propulsion Burnouts . | . . . . . . . . . . . . . . . . . . . . . . . . . . . Robots Hopped . | . . . . . . . . . . . . . . . . . . . . . . . . . . . Potential Cave-ins 4 | . . . . . . . . . . . . . . . . . . . . . . . . . . 4 Cave-ins Triggered 1 | . . . . . . . . . . . . . . . . . . . . . . . . . . 1 Teleports 1 | . . . . . . . . . . . . . . . . . . . . . . . . . . 1 Exploration Rate (%) 69 | 4 84 98 92 98 86 27 95 23 98 94 81 98 8 93 19 97 98 60 92 18 79 90 86 44 27 90 Regions Visited 26 Branch Regions 17 Pre-discovered Areas 20 | . . 1 2 8 1 . . . 1 . 2 1 . . . . . 3 . . . . 1 . . . Known Exits Taken 19 | . 1 1 . 1 . . . 1 1 1 1 1 . . 1 1 1 1 1 1 1 1 1 1 1 . Unknown Exits Taken 3 | 1 . . 1 . 1 . . . . . . . . . . . . . . . . . . . . . Scrap Searched 31 | . . 1 5 . 6 . . . 2 1 2 1 . . . 2 2 . 4 . 3 1 . 1 . . Spaces Dug 240 | . . . 18 . 1 51 . 4 34 1 . . . . 3 1 27 . 2 12 . . . 13 28 45 Terrain Destroyed 520 | . . 20 25 6 1 71 . 4 172 1 . . 2 1 11 24 27 . 11 14 . . 1 13 49 67 Melee 23 | . . . . . 1 9 . 4 4 1 . . . . . . . . 1 . . . . 1 . 2 Projectile 77 | . . 20 8 6 . 3 . . . . . . . . 3 1 . . 4 3 . . . . 6 23 AOE 420 | . . . 17 . . 59 . . 168 . . . 2 1 8 23 27 . 6 11 . . 1 12 43 42 Terrain Rammed . | . . . . . . . . . . . . . . . . . . . . . . . . . . . Walls Destroyed . | . . . . . . . . . . . . . . . . . . . . . . . . . . . Machines Disabled . | . . . . . . . . . . . . . . . . . . . . . . . . . . . Actions | -11 -10 -10 -10 -9 -9 -6 -6 -6 -6 -6 -6 -5 -5 -5 -5 -5 -5 -5 -4 -4 -4 -4 -4 -3 -3 -3 --------- Run | Yrd Mat Min Sub Rec Scr Fac Was Fac Low Low Zio Pro Fac Was Fac Upp Upp Zhi Pro Fac Upp Upp War Pro Res Tes Total 27320 | 155 765 1351 2378 684 2252 1243 486 843 1407 1273 1457 1509 316 610 612 1124 1120 224 936 659 756 949 1621 349 1010 1231 Wait 3018 | 44 178 315 214 12 352 90 73 12 27 59 211 285 . 97 86 36 33 49 29 27 33 39 299 68 46 304 Move 23072 | 80 511 987 2067 574 1851 1058 396 809 1333 1198 1217 1203 303 492 507 1038 1010 152 886 602 713 903 1224 265 897 796 Hop . | . . . . . . . . . . . . . . . . . . . . . . . . . . . Pick Up 86 | 5 8 2 10 4 8 3 . 4 1 4 5 3 2 2 . 1 1 4 2 1 1 . 4 . 6 5 Fast Attach 95 | 7 7 1 2 1 5 19 8 4 2 1 2 2 2 1 1 . 7 6 . 2 . . 7 . 2 6 Attach 45 | . 1 . 2 . 1 14 . 1 . 1 3 . 1 . . . . 2 1 5 . . 3 . 4 6 Detach 46 | . 2 1 3 . 7 13 3 . . . 2 . . . . . 1 1 1 4 . . 2 . 2 4 Swap 105 | . 1 1 10 . 1 1 1 1 5 3 1 5 2 6 4 6 6 . 1 . . 2 11 4 9 24 Drop 122 | . 4 . 8 . 22 6 4 7 3 4 4 7 4 3 1 3 12 9 2 2 1 . 11 . 2 3 Fire 428 | 19 45 36 62 10 1 14 . . 18 . . 3 2 9 13 8 6 . 12 15 8 4 56 9 32 46 Melee 87 | . . . . . 3 25 1 5 18 3 12 1 . . . . . 1 2 1 . 1 1 2 1 10 Ram 4 | . . . . . . . . . . . . . . . . . . . . . . . . . . 4 Kick . | . . . . . . . . . . . . . . . . . . . . . . . . . . . Crush 20 | . 8 8 . 4 . . . . . . . . . . . . . . . . . . . . . . Escape Stasis 13 | . . . . . . . . . . . . . . . . . . . . . . . . . . 13 Rewire 178 | . . . . 79 . . . . . . . . . . . 32 44 . . . . . 3 1 9 10 Trap 1 | . . . . . 1 . . . . . . . . . . . . . . . . . . . . . Miscellaneous . | . . . . . . . . . . . . . . . . . . . . . . . . . . . Route ------- -11/Scrapyard -10/Materials (discovered 6 exits: *Mat x3 / *Min x2 / Sub) -10/Mines (discovered 3 exits: *Mat x2 / *Sub) -10/Subcaves (discovered 4 exits: [*Mat x2] / *Rec / *Scr) -9/Recycling (discovered 2 exits: *Fac / *Scr) -9/Scraptown (discovered 2 exits: *Fac x2) -6/Factory (discovered 2 exits: Low x2) -6/Waste -6/Factory -6/Lower Caves -6/Lower Caves (discovered 2 exits: *Fac / *Zio) -6/Zion -5/Proximity Caves -5/Factory (discovered 2 exits: Upp / Ext) -5/Waste -5/Factory (discovered 4 exits: *Upp x2 / Ext x2) -5/Upper Caves -5/Upper Caves (discovered 2 exits: *Fac / *Zhi) -5/Zhirov -4/Proximity Caves -4/Factory (discovered 2 exits: *Upp x2) -4/Upper Caves -4/Upper Caves (discovered 2 exits: *Res / *War) -4/Warlord -3/Proximity Caves -3/Research (discovered 4 exits: Res / Arm / *Tes x2) -3/Testing (discovered 1 exit: *Res) History --------- Turn | Location | Event 2 | -11/Scrapyard | Met Revision 17 4 | -11/Scrapyard | Discovered new exit (range 16) 239 | -11/Scrapyard | Entered Materials 314 | -10/Materials | Build established: Mutant 397 | -10/Materials | Discovered new exit (range 8) 648 | -10/Materials | Discovered new exit (range 4) 859 | -10/Materials | Discovered new exit (range 8) 1029 | -10/Materials | Discovered new exit (range 8) 1192 | -10/Materials | Identified exit to Materials 1192 | -10/Materials | Identified exit to Mines 1192 | -10/Materials | Identified exit to Subcaves 1239 | -10/Materials | Learned 2 Mines zone layouts 1278 | -10/Materials | Loaded intel: 2 recycling unit locations 1306 | -10/Materials | Learned location of 1 exit from Recycling 1331 | -10/Materials | Learned 4 Materials zone layouts 1349 | -10/Materials | Learned location of 2 exits from Mines 1394 | -10/Materials | Entered Mines 1395 | -10/Mines | Assembled infested the area 1400 | -10/Mines | Assisted by a Guerilla fighting off Assembled 2218 | -10/Mines | Discovered exit to Materials (range 8) 2581 | -10/Mines | Met a Derelict shopkeep closing up shop 2978 | -10/Mines | Assisted by bots powering up and referring to "LRC-V3" 3692 | -10/Mines | Entered Subcaves 3692 | -10/Subcaves | Accompanied by 3 allies 3693 | -10/Subcaves | Approached by a straggling Scientist 3712 | -10/Subcaves | Learned 8 Materials zone layouts 3712 | -10/Subcaves | Discovered new exit (range 16) 3743 | -10/Subcaves | Learned location of 1 exit from Materials 4194 | -10/Subcaves | Shifting Twisted Machinery released Mak. Light Armor Plating 4202 | -10/Subcaves | Shifting Twisted Machinery released Sub. Laser 4398 | -10/Subcaves | Visited triangular shrine 4419 | -10/Subcaves | Found Prototype Device 4420 | -10/Subcaves | Identified V3-11A's Pendant 4425 | -10/Subcaves | Befriended Subdweller 4488 | -10/Subcaves | Learned location of Zion (-6) 4488 | -10/Subcaves | Met a Zionite searching for "candidates" 4933 | -10/Subcaves | Scientist uncovered a shortcut to Scraptown 4963 | -10/Subcaves | Shifting Twisted Machinery released Shrapnel Trap 4976 | -10/Subcaves | Shifting Twisted Machinery released Battle Cannon 5110 | -10/Subcaves | Befriended Subdweller 5330 | -10/Subcaves | Befriended Subdweller 6406 | -10/Subcaves | A swath of the cavern ceiling suddenly collapsed 6625 | -10/Subcaves | Befriended Subdweller 7121 | -10/Subcaves | Visited Clippyterm 7132 | -10/Subcaves | Learned location of Section 7 (-2) 7270 | -10/Subcaves | A swath of the cavern ceiling suddenly collapsed 7690 | -10/Subcaves | Befriended Subdweller 7782 | -10/Subcaves | Discovered new exit (range 16) 7850 | -10/Subcaves | Disturbed a concealed Subdweller 8330 | -10/Subcaves | Befriended Subdweller 8471 | -10/Subcaves | Ambushed by Subdweller buried in earth 8475 | -10/Subcaves | Befriended Subdweller 8498 | -10/Subcaves | Discovered new exit (range 11) 8998 | -10/Subcaves | Visited 4L-MR0's lab 9031 | -10/Subcaves | Found Meta Core 9776 | -10/Subcaves | Lost 4 allies 11022 | -10/Subcaves | Entered Recycling 11022 | -9/Recycling | Accompanied by 2 allies 11023 | -9/Recycling | Identified exit to Scraptown 11650 | -9/Recycling | Learned 2 Storage zone layouts 11728 | -9/Recycling | Identified exit to Factory 11796 | -9/Recycling | Learned location of 2 exits from Materials 11854 | -9/Recycling | Learned Storage stockpile data 11965 | -9/Recycling | Learned Storage stockpile data 12105 | -9/Recycling | Learned Materials trap positions 12172 | -9/Recycling | Learned location of 1 exit from Recycling 12828 | -9/Recycling | Build established: Commander-Mutant 13013 | -9/Recycling | Scanned before Scraplab entrance 13064 | -9/Recycling | Entered Scraplab 13112 | -9/Recycling | Entered Scraptown 13112 | -9/Scraptown | Accompanied by 6 allies 13820 | -9/Scraptown | Heard Great Nut preacher, LISTEN AND RECITE! 13820 | -9/Scraptown | Discovered new exit (range 11) 13979 | -9/Scraptown | Scanned Subdweller tech in exchange for log data 13990 | -9/Scraptown | Learned location of Quarantine (-2) 13993 | -9/Scraptown | Learned Factory emergency access door positions 13996 | -9/Scraptown | Learned Research stockpile data 14000 | -9/Scraptown | Learned Factory terminal intel 14302 | -9/Scraptown | Delivered V3-11A's Pendant to T0-NE2 in exchange for information 14428 | -9/Scraptown | Visited Fellowship of the Rings 14459 | -9/Scraptown | Visited Bundlers 15217 | -9/Scraptown | Visited UFD Registry 15217 | -9/Scraptown | Registered with UFD as "Gaussdome" 15333 | -9/Scraptown | Visited Junk Repository 15478 | -9/Scraptown | Visited Science Guys 15648 | -9/Scraptown | Visited Scrapoid Research Area 15672 | -9/Scraptown | Received an X-ray algorithm 15740 | -9/Scraptown | Visited Junk Repository 15818 | -9/Scraptown | Visited Scrap Suit Storage 15862 | -9/Scraptown | Visited Derelict Rescue Squad 15954 | -9/Scraptown | Visited Scrapoid Pod Storage 16042 | -9/Scraptown | Visited Analyses Database 16352 | -9/Scraptown | Delivered Scrap Shield to a Scientist 17129 | -9/Scraptown | Attached CPS modules to Grenadier 2a. 17935 | -9/Scraptown | Found Scrapoid Pod 18106 | -9/Scraptown | Discovered new exit (range 3) 18115 | -9/Scraptown | Warned about trapping Scraptown 18196 | -9/Scraptown | Met Optimus 18196 | -9/Scraptown | Accepted into 0bPrime 18596 | -9/Scraptown | Civil war broke out across Scraptown 18602 | -9/Scraptown | Found System Spiker 18662 | -9/Scraptown | Entered Factory 18662 | -6/Factory | Evolved 8 slots: Power x1, Propulsion x3, Utility x4 18664 | -6/Factory | Loaded intel: 26 terminal locations 18676 | -6/Factory | Lost 5 allies 18894 | -6/Factory | Build established: Mutant 18932 | -6/Factory | Spotted B-75 Beast 19140 | -6/Factory | Fabricated Lgt. Antimatter Reactor? 19211 | -6/Factory | Lost 6 parts (2n3u1w) 19345 | -6/Factory | Attached Meta Core, gained temporary slots: Propulsion, Utility, Weapon 19778 | -6/Factory | Identified exit to Lower Caves 19839 | -6/Factory | Manually triggered Chute Trap 19839 | -6/Factory | Sucked down chute 19839 | -6/Factory | Entered Waste 19840 | -6/Waste | Joined by Warlord forces that had cleared the area 19986 | -6/Waste | Discovered new exit (range 16) 19999 | -6/Waste | Found Prototype Processor 19999 | -6/Waste | Identified Exp. Terrain Scan Processor 20086 | -6/Waste | Found Fusion Bomb Launcher 20141 | -6/Waste | Identified exit to Factory 20169 | -6/Waste | Entered Factory 20169 | -6/Factory | Accompanied by 20 allies 20353 | -6/Factory | Lost 3 allies 20444 | -6/Factory | Fabricated B-48 Gladiator? 20629 | -6/Factory | Fabricated R-06 Scavenger? 20648 | -6/Factory | Discovered exit to Lower Caves (range 15) 20683 | -6/Factory | Entered Lower Caves 20685 | -6/Lower Caves | UFD Scientist delivered a prototype 20688 | -6/Lower Caves | Found Prototype Protection 20688 | -6/Lower Caves | Identified Enh. Scrap Shield 20711 | -6/Lower Caves | Build established: Scavenger-Mutant 20773 | -6/Lower Caves | Core integrity fell below 50% 20777 | -6/Lower Caves | Attracted the attention of an 0b10 outpost 20900 | -6/Lower Caves | Encountered a Warlord checkpoint 20947 | -6/Lower Caves | Identified exit to Lower Caves 20954 | -6/Lower Caves | Learned Factory terminal intel 20985 | -6/Lower Caves | Attracted the attention of an 0b10 checkpoint 21285 | -6/Lower Caves | Entered an active Warlord outpost 21291 | -6/Lower Caves | A Commander dispatched an escort 21292 | -6/Lower Caves | Learned Research trap positions 21292 | -6/Lower Caves | Learned Research emergency access door positions 21292 | -6/Lower Caves | Learned Research security intel 21512 | -6/Lower Caves | Entered another Lower Caves area 21515 | -6/Lower Caves | Discovered new exit (range 14) 21520 | -6/Lower Caves | Learned 4 Factory zone layouts 21576 | -6/Lower Caves | Learned Factory trap positions 21634 | -6/Lower Caves | Encountered a Warlord checkpoint 21658 | -6/Lower Caves | Discovered new exit (range 15) 21808 | -6/Lower Caves | Spotted B-75 Beast 22006 | -6/Lower Caves | Prototype Device suddenly appears! 22010 | -6/Lower Caves | Found Prototype Device 22041 | -6/Lower Caves | Identified Amulet of Y3-NDR 22079 | -6/Lower Caves | Joined by bewildered Wizard 22080 | -6/Lower Caves | Joined by bewildered Wizard 22141 | -6/Lower Caves | Joined by bewildered Wizard 22147 | -6/Lower Caves | Joined by bewildered Wizard 22197 | -6/Lower Caves | Build established: Mutant 22258 | -6/Lower Caves | Identified exit to Zion 22270 | -6/Lower Caves | Entered Zion 22270 | -6/Zion | Accompanied by 4 allies 22316 | -6/Zion | System corruption cleaned by Quarantine Array 22359 | -6/Zion | Received a hallucinogenic algorithm 22365 | -6/Zion | Discovered new exit (range 16) 22387 | -6/Zion | Given A8's code to call for help 22532 | -6/Zion | Learned location of 1 exit from Factory 22574 | -6/Zion | Gained Derelict followers 22625 | -6/Zion | Found CR-A16's Pointy Stick 22632 | -6/Zion | Learned location of Warlord (-4) 22847 | -6/Zion | Murdered 5 allies 22990 | -6/Zion | Scrapoid Pod released 06Z07-D (x5) 23024 | -6/Zion | Found GAL Module 23121 | -6/Zion | Found Prototype Special Weapon 23121 | -6/Zion | Identified RU-N14's Throwing Claymores 23126 | -6/Zion | Found RU-N14's Throwing Claymores 23174 | -6/Zion | Identified exit to Proximity Caves 23263 | -6/Zion | Entered Proximity Caves 23263 | -5/Proximity Caves | Accompanied by 11 allies 23288 | -5/Proximity Caves | Encountered an infested base 23296 | -5/Proximity Caves | Found DCF Scrap (15 items) 23308 | -5/Proximity Caves | Joined by bewildered Wizard 23337 | -5/Proximity Caves | Joined by bewildered Wizard 23337 | -5/Proximity Caves | Joined by bewildered Wizard 23341 | -5/Proximity Caves | Lost 3 allies 23451 | -5/Proximity Caves | Joined by bewildered Wizard 23459 | -5/Proximity Caves | Lost 3 allies 23476 | -5/Proximity Caves | Joined by bewildered Wizard 23684 | -5/Proximity Caves | Discovered new exit (range 12) 23743 | -5/Proximity Caves | Build established: Scavenger-Skirmisher 23779 | -5/Proximity Caves | Joined by bewildered Wizard 23909 | -5/Proximity Caves | Learned Factory trap positions 24081 | -5/Proximity Caves | Received a Behemoth hack from an annoying Tinkerer 24827 | -5/Proximity Caves | Identified exit to Factory 24870 | -5/Proximity Caves | Entered Factory 24870 | -5/Factory | Accompanied by 10 allies 24870 | -5/Factory | Evolved 2 slots: Propulsion x1, Utility x1 24871 | -5/Factory | Identified exit to Extension 24872 | -5/Factory | Identified exit to Upper Caves 24873 | -5/Factory | Loaded intel: 110 trap records 24874 | -5/Factory | Loaded intel: 27 terminal locations 25015 | -5/Factory | Joined by bewildered Wizard 25032 | -5/Factory | Sucked down chute 25032 | -5/Factory | Entered Waste 25046 | -5/Waste | Spotted C-40 Crusher 25051 | -5/Waste | Spotted C-40 Crusher 25053 | -5/Waste | Spotted C-40 Crusher 25062 | -5/Waste | Spotted C-40 Crusher 25087 | -5/Waste | Rewired C-40 Crusher 25120 | -5/Waste | Spotted C-40 Crusher 25133 | -5/Waste | Warlord forces began an assault 25164 | -5/Waste | Allies destroyed C-40 Crusher 25169 | -5/Waste | Allies destroyed C-40 Crusher 25190 | -5/Waste | Spotted C-40 Crusher 25197 | -5/Waste | Allies destroyed C-40 Crusher 25209 | -5/Waste | Allies destroyed C-40 Crusher 25239 | -5/Waste | Discovered new exit (range 12) 25240 | -5/Waste | Lost 7 allies 25287 | -5/Waste | 10 allies followed down the chute 25351 | -5/Waste | Identified exit to Factory 25412 | -5/Waste | Entered Factory 25412 | -5/Factory | Accompanied by 17 allies 25413 | -5/Factory | Loaded intel: 93 trap records 25481 | -5/Factory | Joined by bewildered Wizard 25492 | -5/Factory | Joined by bewildered Wizard 25564 | -5/Factory | Spotted B-75 Beast 25665 | -5/Factory | Garrison activated, responded to threat 25727 | -5/Factory | Joined by bewildered Wizard 25728 | -5/Factory | Joined by bewildered Wizard 25791 | -5/Factory | Entered Upper Caves 25791 | -5/Upper Caves | Accompanied by 8 allies 25795 | -5/Upper Caves | Encountered a Warlord checkpoint 25808 | -5/Upper Caves | Lost 6 allies 25819 | -5/Upper Caves | Joined by bewildered Wizard 26042 | -5/Upper Caves | Learned 4 Factory zone layouts 26048 | -5/Upper Caves | Learned Factory stockpile data 26316 | -5/Upper Caves | Discovered new exit (range 14) 26326 | -5/Upper Caves | Identified exit to Upper Caves 26401 | -5/Upper Caves | Entered another Upper Caves area 26401 | -5/Upper Caves | Accompanied by 6 allies 26410 | -5/Upper Caves | Discovered new exit (range 12) 26505 | -5/Upper Caves | Learned location of 1 exit from Proximity Caves 26604 | -5/Upper Caves | Joined by bewildered Wizard 26892 | -5/Upper Caves | Spotted B-75 Beast 26898 | -5/Upper Caves | Allies destroyed B-75 Beast 26946 | -5/Upper Caves | Discovered new exit (range 15) 26960 | -5/Upper Caves | Identified exit to Zhirov 27092 | -5/Upper Caves | Attracted the attention of an 0b10 outpost 27187 | -5/Upper Caves | Entered Zhirov 27187 | -5/Zhirov | Accompanied by 4 allies 27187 | -5/Zhirov | Discovered new exit (range 3) 27196 | -5/Zhirov | Met Zhirov 27205 | -5/Zhirov | Learned location of Testing (-3) 27205 | -5/Zhirov | Learned location of Command (-1) 27210 | -5/Zhirov | Zhirov requested help retrieving the SGEMP Prototype 27218 | -5/Zhirov | Found Alien Artifact 27218 | -5/Zhirov | Identified Integrated Dissipator 27218 | -5/Zhirov | Installed Integrated Dissipator, increased core heat dissipation (+20) 27233 | -5/Zhirov | Found Alien Artifact 27240 | -5/Zhirov | Revealed the true nature of CR-A16's Pointy Stick 27284 | -5/Zhirov | Identified exit to Proximity Caves 27334 | -5/Zhirov | Entered Proximity Caves 27334 | -4/Proximity Caves | Accompanied by 4 allies 27335 | -4/Proximity Caves | Identified exit to Factory 27339 | -4/Proximity Caves | Build established: Scavenger-Mutant 27371 | -4/Proximity Caves | Joined by bewildered Wizard 27461 | -4/Proximity Caves | Learned Research garrison access intel 27462 | -4/Proximity Caves | Learned Research terminal intel 27631 | -4/Proximity Caves | Attracted the attention of an 0b10 outpost 27653 | -4/Proximity Caves | Joined by bewildered Wizard 27657 | -4/Proximity Caves | Joined by bewildered Wizard 27666 | -4/Proximity Caves | Lost 4 allies 27722 | -4/Proximity Caves | Lost 3 allies 27832 | -4/Proximity Caves | Entered Factory 27832 | -4/Factory | Evolved 2 slots: Utility x2 27844 | -4/Factory | Joined by bewildered Wizard 27846 | -4/Factory | Identified exit to Upper Caves 27848 | -4/Factory | Joined by bewildered Wizard 27848 | -4/Factory | Joined by bewildered Wizard 27864 | -4/Factory | Joined by bewildered Wizard 27902 | -4/Factory | Spotted B-86 Titan 27914 | -4/Factory | Destroyed B-86 Titan 27942 | -4/Factory | Lost 3 allies 27948 | -4/Factory | Fabricated Imp. Arc Thrower (x1) 27985 | -4/Factory | Joined by bewildered Wizard 27985 | -4/Factory | Joined by bewildered Wizard 27985 | -4/Factory | Joined by bewildered Wizard 28026 | -4/Factory | Joined by bewildered Wizard 28135 | -4/Factory | Build established: Hacker-Mutant 28186 | -4/Factory | Joined by bewildered Wizard 28208 | -4/Factory | Entered Upper Caves 28208 | -4/Upper Caves | Accompanied by 4 allies 28248 | -4/Upper Caves | Learned Research emergency access door positions 28255 | -4/Upper Caves | Identified exit to Upper Caves 28265 | -4/Upper Caves | Joined by bewildered Wizard 28445 | -4/Upper Caves | Learned Research emergency access door positions 28456 | -4/Upper Caves | Joined by bewildered Wizard 28457 | -4/Upper Caves | Joined by bewildered Wizard 28616 | -4/Upper Caves | Entered another Upper Caves area 28616 | -4/Upper Caves | Accompanied by 4 allies 28643 | -4/Upper Caves | Discovered new exit (range 13) 28648 | -4/Upper Caves | Identified exit to Research 28767 | -4/Upper Caves | Joined by bewildered Wizard 28893 | -4/Upper Caves | Spotted B-86 Titan 28905 | -4/Upper Caves | Destroyed B-86 Titan 28916 | -4/Upper Caves | Learned location of 1 exit from Research 28991 | -4/Upper Caves | Joined by bewildered Wizard 29016 | -4/Upper Caves | Joined by bewildered Wizard 29018 | -4/Upper Caves | Joined by bewildered Wizard 29047 | -4/Upper Caves | Discovered new exit (range 6) 29052 | -4/Upper Caves | Identified exit to Warlord 29115 | -4/Upper Caves | Entered Warlord 29115 | -4/Warlord | Accompanied by 5 allies 29159 | -4/Warlord | Learned 4 Command zone layouts 29159 | -4/Warlord | Learned Testing security intel 29159 | -4/Warlord | Learned Factory fabricator intel 29159 | -4/Warlord | Learned Armory scanalyzer intel 29159 | -4/Warlord | Learned Research scanalyzer intel 29403 | -4/Warlord | Rebuked by Warlord 29411 | -4/Warlord | Warlord's base attacked by MAIN.C 29471 | -4/Warlord | Found Prototype Device 29471 | -4/Warlord | Identified System Purifier 29475 | -4/Warlord | Found Prototype Device 29475 | -4/Warlord | Identified Exp. Phase Shifter 29483 | -4/Warlord | Found Prototype Reactor 29629 | -4/Warlord | Spotted B-90 Cyclops 29677 | -4/Warlord | Lost 8 allies 29694 | -4/Warlord | Allies destroyed B-90 Cyclops 29761 | -4/Warlord | Warlord forces counterattacked 29783 | -4/Warlord | Spotted Striker 29813 | -4/Warlord | Spotted Executioner 29862 | -4/Warlord | Spotted Executioner 29862 | -4/Warlord | P-70 Sage assimilated allied ZL-XD5(g) 29863 | -4/Warlord | P-70 Sage assimilated allied XN-TJN(b) 29911 | -4/Warlord | Spotted B-90 Cyclops 29915 | -4/Warlord | Spotted B-86 Titan 29918 | -4/Warlord | Lost 21 allies 29919 | -4/Warlord | Spotted Striker 29929 | -4/Warlord | P-70 Sage assimilated allied 6X-AIB(b) 29951 | -4/Warlord | Spotted Executioner 29953 | -4/Warlord | P-80 Master assimilated allied KF-9AV(Y) 29986 | -4/Warlord | Destroyed B-86 Titan 30016 | -4/Warlord | Lost 14 allies 30086 | -4/Warlord | Warlord base infiltrated, sounded retreat 30111 | -4/Warlord | Attached CPS modules to Enhanced Demolisher. 30118 | -4/Warlord | Attached CPS modules to Enhanced Demolisher. 30125 | -4/Warlord | Attacked by Warlord forces 30157 | -4/Warlord | Spotted Executioner 30159 | -4/Warlord | Discovered new exit (range 9) 30161 | -4/Warlord | Identified exit to Proximity Caves 30162 | -4/Warlord | Entered Proximity Caves 30277 | -3/Proximity Caves | Joined by bewildered Wizard 30279 | -3/Proximity Caves | Joined by bewildered Wizard 30329 | -3/Proximity Caves | Joined by bewildered Wizard 30330 | -3/Proximity Caves | Joined by bewildered Wizard 30370 | -3/Proximity Caves | Lost 3 allies 30378 | -3/Proximity Caves | Entered Research 30378 | -3/Research | Accompanied by 2 allies 30378 | -3/Research | Evolved 2 slots: Propulsion x1, Weapon x1 30379 | -3/Research | Identified exit to Research 30380 | -3/Research | Loaded intel: 70 trap records 30384 | -3/Research | Loaded intel: 24 terminal locations 30385 | -3/Research | Loaded intel: 6 scanalyzer locations 30386 | -3/Research | Loaded intel: 4 garrison access locations 30389 | -3/Research | Joined by bewildered Wizard 30390 | -3/Research | Joined by bewildered Wizard 30429 | -3/Research | Joined by bewildered Wizard 30596 | -3/Research | Joined by bewildered Wizard 30596 | -3/Research | Joined by bewildered Wizard 30597 | -3/Research | Joined by bewildered Wizard 30598 | -3/Research | Spotted B-86 Titan 30636 | -3/Research | Spotted B-86 Titan 30651 | -3/Research | Destroyed B-86 Titan 30664 | -3/Research | Identified exit to Armory 30664 | -3/Research | Identified exit to Testing 30683 | -3/Research | Build established: Hacker-Gunner 30895 | -3/Research | Entered Testing 30895 | -3/Testing | Accompanied by 1 ally 30935 | -3/Testing | Found Prototype Ballistic Gun 30935 | -3/Testing | Identified Hyp. Multirail 30985 | -3/Testing | Crushed by falling debris 31016 | -3/Testing | Lost 3 parts (3n) 31106 | -3/Testing | Found Prototype Energy Cannon 31112 | -3/Testing | Discovered exit to Research (range 8) 31418 | -3/Testing | Scanned by Researcher 31425 | -3/Testing | System corruption reached 10% 31425 | -3/Testing | System corruption reached 30% 31428 | -3/Testing | Identified Hpw. Disruptor Cannon 31428 | -3/Testing | Identified Transdimensional Reconstructor 31428 | -3/Testing | Identified Vortex Chain Reactor 31449 | -3/Testing | Found Portable AFG 31564 | -3/Testing | Found Prototype Ballistic Cannon 31564 | -3/Testing | Identified Perforator 31676 | -3/Testing | Warped through subspace 31739 | -3/Testing | Core integrity fell below 50% 31742 | -3/Testing | Core integrity fell below 20% 31743 | -3/Testing | Destroyed by P-80 Master with Gamma Rifle Last Messages --------------- 31734_ Penetrated by Slug. 31734_ P-80 Master resets Q155-d, system corruption cleaned. 31734_ Cld. Antigrav System destroyed. 31734_ P-80 Master resets P-80 Master, system corruption cleaned. 31736_ Cmb. Antigrav System+ destroyed. 31736_ Penetrated by Slug. 31736_ Slug penetrates Wall. 31736_ Penetrated by Slug. 31737_ Adv. Hacking Suite destroyed. 31738_ Penetrated by Slug. 31739_ P-80 Master resets P-80 Master, system corruption cleaned. 31739_ Penetrated by Slug. 31739_ Slug penetrates Wall. 31741_ Penetrated by Slug. 31743_ Critical hit (Burn: +50). 31743_ Core Analyzer destroyed. 31743_ Slug penetrates P-80 Master. Map ----- +----------------------------------------------------+ | ####???????????????# """ # # | | #??????????????????# """ # ########### # | | #??????????????????# """ # # "T" # # | | ##??????????????????# # # + # | | ????????????????????# # / ### # " | | ????????????????????# # # #?# # ""R | | ?????????????#####?######## # """ """ #?# # """ | | ?????????????# ? # # """ """ #?# ##### | | ?????????????# "?" # # """ """ #?# #???? | | ?????????????# "?" " # # #?# #???? | | ?????????????# """ " # ######+####?# #???? | | ?????????????# " # #????# #????# #???? | | ?????????????# """"" + #????# #???## ##??? | | ?????????????# """"" # #????# ##### !#??? | | ?????????????# " # #????# ! #??? | | ?????????????# """ " # #???## #### #??? | | ?????????????# " " " # #???# #??#####??? | | ?????????????# "]" # #???# #?????????? | | ?????????????# # #?????????????????? | | ???????########"##$#/###### #?????????????????? | | ???????# *= ![ $$%# #????# ########??????????? | | ???????# """! """!$# #????# ## = #??????????? | | ???????# """" """" # #????# ## #??????????? | | ???????# """" """" # #????# ##! #??????????? | | ???????# """ """ # ###### ## ###########? | | ???????# # pg @p ## # #? | | ???????# """ + Q pp ## """ # #? | | ???????# * """" # ggpp ## """ # #? | | ???????# """" + h ## """ # ## | | ???????# """ ########hh ## """ + # | | ???????#![! # # ## """ # # | | ???????#[! # # ## # # | | ???????#[! # """ # ## # # | | ??????##########"### """ + ######+######+##+# | | ####### ##?# """ # #?# # | | # """"""" #??# """ # #?# # | | # """"""" #??# """ ####A#?# + | | + """"""" #??# #??# #?# # | | # #??# """ #??# ######+########### | | """ # = !#??# """ #??# ## = #?????# | | """ # #??# """ #### ## #?????# | | """ # #??# """ + + #?????# | | """ ###########??# """ ## ## #?????# | | """ #???????????# ## ## #?????## | | #???????????######### ## #??????? | | #???????????????????###### [ #??????? | | #### #????????????????????????# #??????? | | =# #????????????????????????###########??????? | | # ????????????????????????????????????????? | | #######???????????????????????????????????????? | +----------------------------------------------------+ Best States ------------- Heat Dissipation 92 Energy Generation 55 Energy Capacity 700 Matter Stores 300 Matter Capacity 300 Sight Range 16 Robot Scan Range 16 Terrain Scan Density 10 Jamming Range 16 Cloak Strength 3 Corruption Containment 12 Armor Coverage 800 Propulsion Shielding 90 Weapon Cycling 25 Phase Shifting 20 Evasion (%) 77 Melee Accuracy 8 Core Analysis 6 Recoil Reduction 2 Offensive Hacking 14 Defensive Hacking 14 Authchip Count 4 Item Schematics ----------------- Microactuators | -9/Recycling | Hacked Adv. Trap Extractor | -6/Zion | Archive Imp. Actuator Array | -6/Zion | Archive Arm. Leg | -6/Zion | Archive Neutrino Core | -6/Zion | Archive KE Penetrator | -6/Zion | Archive IFF Parser | -6/Zion | Archive Hardcell Cannon | -6/Zion | Archive Coil Gun | -6/Zion | Archive Imp. Kinecellerator | -6/Zion | Archive Hvy. Pick | -6/Zion | Archive Antigrav System | -6/Zion | Archive Thermal Shield | -6/Zion | Archive Tesla Rifle | -6/Zion | Archive Adv. Melee Analysis Suite | -6/Zion | Archive Adv. Focal Shield | -6/Zion | Archive Assault Drone Bay | -5/Zhirov | Free Exp. Heat Sink | -5/Zhirov | Free Exp. Optical Array | -5/Zhirov | Free Imp. Arc Thrower | -5/Zhirov | Free Proton Burst Cannon | -3/Testing | Archive Exp. Thermal Defense Suite | -3/Testing | Archive Spectral Analyzer | -3/Testing | Archive Cld. Phase Cannon | -3/Testing | Archive Hvy. Antimatter Reactor | -3/Testing | Archive Robot Schematics ------------------ A-15 Conveyor | -6/Zion | Archive L-41 Fighter | -6/Zion | Archive X-77 Beamer | -6/Zion | Archive Fabricated ------------ Lgt. Antimatter Reactor | x2 | -6/Factory | Preloaded B-48 Gladiator | x3 | -6/Factory | Preloaded R-06 Scavenger | x2 | -6/Factory | Preloaded Imp. Arc Thrower | x1 | -4/Factory Repaired ---------- Nothing Studied --------- Antigrav Array | -3/Testing | Hacked Cmb. Antigrav System | -3/Testing | Hacked Alien Tech Used ----------------- Integrated Dissipator Transdimensional Reconstructor Achievements -------------- Disruptive Presence You Again Challenges ------------ None Game ------ Seed FluxFlakCartridge Manual? 0 Play Time 02:44:57 Cumulative 268.8 hours Start 2026.02.10 @ 19:07:11 End 2026.02.12 @ 16:16:20 Sessions 9 Manual Loads 0 Difficulty Rogue Special Mode None Game No. 270 Rogue 270 Adventurer 0 Explorer 0 Win Type - Total 13 Types 9/1/2/0/0/0/0/0/0/1 Lore% 89 Gallery% 77 Achievement% 64 Wizard Run 0 Options --------- Layout 1 ASCII 0 Keyboard 1 Movement Arrows Keybinds 0 Fullscreen 1 Font 24/Smallcaps Map View 50x40 Zoom Use 0% Tactical HUD 1 Map Filters NONE Filters NONE Steam 1 RUN: 6bb6b5ac-8593-4d80-b30f-10663866d5fd